Cogmind - Beta 13 @@@ ROGUE MODE // 2024.04.08 @ 19:39:17 Player: Arc Result: Destroyed by I6-536(R) with Subdweller Machine Gun Performance ------------- Evolutions (0) 0 Regions Visited (3) 600 Robots Destroyed (36) 180 Value Destroyed (692) 692 Prototype IDs (4) 80 Alien Tech Used (0) 0 Bonus (0) 0 TOTAL SCORE: 1552 Bonus ------- None Cogmind --------- Core Integrity 0/250 Matter 115/300 Energy 196/200 System Corruption 0% Temperature Cool (0) Movement Walking (190) Ox1 Location -10/Subcaves Parts ------- > --- POWER (1) -------- Subdweller Power Source > --- PROPULSION (2) --- Aluminum Leg Aluminum Leg > --- UTILITY (2) ------ Large Storage Unit Experimental Sensor Array > --- WEAPON (2) ------- Barrage Gun Battle Cannon > --- INVENTORY (15) --- Ion Engine Light Ion Engine Subdweller Power Source Improved Terrain Scanner Light Armor Plating Battle Rifle Battle Rifle Subdweller Machine Gun Improved Assault Rifle Makeshift Shrapnel Gun Improved Light Cannon Improved Light Cannon Grenade Launcher Hammer Shrapnel Trap Peak State ------------ > --- POWER ------------ Subdweller Power Source > --- PROPULSION ------- Spiked Treads Spiked Treads > --- UTILITY ---------- Large Storage Unit Experimental Sensor Array > --- WEAPON ----------- Barrage Gun Battle Cannon > --- INVENTORY -------- Ion Engine Light Ion Engine Aluminum Leg Aluminum Leg Improved Terrain Scanner Light Armor Plating Battle Rifle Battle Rifle Improved Assault Rifle Improved Light Cannon Improved Light Cannon Grenade Launcher Hammer [Rating: 23] Favorites ----------- Power Ion Engine Engine Ion Engine Power Core Light Nuclear Core Propulsion Light Treads Treads Light Treads Leg Aluminum Leg Utility Large Storage Unit Device Experimental Sensor Array Storage Large Storage Unit Processor Signal Interpreter Weapon Improved Assault Rifle Ballistic Gun Improved Assault Rifle Ballistic Cannon Improved Light Cannon Launcher Grenade Launcher Impact Weapon Hammer Slashing Weapon Mining Claw Build | -11 -10 -10 -10 ------- Run | Yrd Mat Min Sub Slots Evolved . | . . . . Power . | . . . . Propulsion . | . . . . Utility . | . . . . Weapon . | . . . . Parts Attached 57 | 6 27 10 14 Power 6 | 1 1 1 3 Engine 5 | 1 . 1 3 Core 1 | . 1 . . Reactor . | . . . . Propulsion 10 | 2 1 3 4 Treads 6 | 2 1 1 2 Leg 4 | . . 2 2 Wheel . | . . . . Hover . | . . . . Flight . | . . . . Utility 10 | 1 6 2 1 Device 2 | . . 1 1 Storage 3 | 1 2 . . Processor 5 | . 4 1 . Hackware . | . . . . Protection . | . . . . Artifact . | . . . . Weapon 31 | 2 19 4 6 Energy Gun . | . . . . Energy Cannon . | . . . . Ballistic Gun 10 | 2 4 1 3 Ballistic Cannon 12 | . 8 2 2 Launcher 3 | . 2 1 . Special Weapon . | . . . . Impact Weapon 5 | . 4 . 1 Slashing Weapon 1 | . 1 . . Piercing Weapon . | . . . . Special Melee Weapon . | . . . . Unidentified Prototypes 2 | . 1 1 . Parts Lost 8 | . . 6 2 Power 1 | . . 1 . Propulsion 3 | . . 2 1 Utility 1 | . . 1 . Weapon 3 | . . 2 1 Highest Loss Streak 6 | . . 6 1 To Critical Strikes . | . . . . Average Slot Usage (%) 96 | . 95 93 99 Engine 9 | . 3 11 14 Core 4 | . 10 2 . Treads 15 | . 28 10 8 Leg 10 | . . 10 19 Device 7 | . . 8 14 Storage 14 | . 14 14 14 Processor 4 | . 9 5 . Ballistic Gun 15 | . 17 14 14 Ballistic Cannon 12 | . 9 13 13 Naked Turns . | . . . . Heaviest Build 45 | 10 45 33 33 Greatest Support 40 | 40 40 40 40 Greatest Overweight (x) 1 | . 1 1 1 Average Overweight (x) . | . . . . Largest Inventory Capacity 20 | 8 20 15 15 Average Capacity 14 | 6 14 15 15 Most Carried 15 | 3 12 13 15 Average Carried 9 | 1 6 10 12 Final Capacity 15 | 8 15 15 15 Final Carried 15 | 1 11 11 15 Class Distribution -------------------- 89% | Mutant 10% | Derelict-Mutant Dominant Class ---------------- Mutant | -10/Materials Mutant | -10/Mines Mutant | -10/Subcaves Resources | -11 -10 -10 -10 ----------- Run | Yrd Mat Min Sub Matter Collected 1201 | 239 480 199 283 Remotely . | . . . . Salvage Created 1097 | . 751 270 76 Parts 76 | . 54 19 3 Haulers Intercepted 2 | . 2 . . Recyclers Shooed 2 | . 2 . . Parts Field Recycled . | . . . . Retrieved Matter . | . . . . Parts Self-Destructed 11 | . . . 11 Prevented . | . . . . Kills | -11 -10 -10 -10 ------- Run | Yrd Mat Min Sub Combat Hostiles Destroyed 21 | . 10 8 3 Guns 9 | . 4 3 2 Cannons 1 | . . . 1 AOE 11 | . 6 5 . Classes Destroyed 10 | . 8 1 1 Worker 1 | . 1 . . Builder 1 | . 1 . . Tunneler 1 | . . 1 . Hauler 2 | . 2 . . Recycler 6 | . 5 1 . Operator 1 | . 1 . . Watcher 3 | . 3 . . Swarmer 9 | . 6 3 . Grunt 9 | . 4 5 . Subdweller 3 | . . . 3 Best Kill Streak 7 | . 7 5 1 Combat Bots Only 5 | . 5 5 1 Max Kills in Single Turn 2 | . 2 2 1 Gunslinging . | . . . . Exploded 2 | . 2 2 . Melee . | . . . . Uniques/NPCs Destroyed . | . . . . Combat | -11 -10 -10 -10 -------- Run | Yrd Mat Min Sub Hostile Shots Fired 127 | . 38 66 23 Missed 33 | . 9 20 4 Damage Taken 1823 | . 264 1128 431 Core 261 | . 30 172 59 Absorbed by Shields . | . . . . Regen/Repaired (Parts) 23 | . 23 . . Core Remaining (%) 100 | 100 . . . Volleys Fired 120 | 3 61 27 29 Largest 2 | 2 2 2 2 Hottest 67 | 40 62 62 67 Shots Fired 230 | 6 113 53 58 Gun 159 | 6 97 27 29 Cannon 60 | . 10 21 29 Launcher 11 | . 6 5 . Special . | . . . . Kinetic 219 | 6 107 48 58 Thermal . | . . . . Explosive 11 | . 6 5 . Electromagnetic . | . . . . Robot Hit Streak 13 | 2 13 8 8 Robot Miss Streak 7 | 2 7 2 2 Penetration Max . | . . . . Secondary Targets . | . . . . Shots Hit Robots 109 | 3 51 28 27 Core Hits 71 | 2 46 17 6 Critical Kills . | . . . . Critical Parts Destroyed . | . . . . Critical Strikes 2 | . . . 2 Blast 2 | . . . 2 Melee Attacks 18 | . 8 . 10 Impact 16 | . 6 . 10 Slashing 2 | . 2 . . Piercing . | . . . . Sneak Attacks . | . . . . Combat Hostiles . | . . . . Follow-up Attacks . | . . . . Damage Inflicted 2329 | 29 929 933 438 Guns 959 | 29 432 311 187 Cannons 494 | . 72 171 251 Explosions 860 | . 425 435 . Melee . | . . . . Ramming 16 | . . 16 . Kinetic 1453 | 29 504 482 438 Thermal . | . . . . Explosive 860 | . 425 435 . Electromagnetic . | . . . . Impact . | . . . . Slashing . | . . . . Piercing . | . . . . Highest Corruption . | . . . . Average Corruption . | . . . . Corruption Purged . | . . . . Corruption Blocked . | . . . . Overload Shots . | . . . . Overflow Damage 6 | . . 6 . Projectiles 6 | . . 6 . Explosions . | . . . . Melee . | . . . . Knockbacks 4 | . 1 3 . Impact . | . . . . Kinetic 4 | . 1 3 . Secondary . | . . . . Self-Inflicted Damage . | . . . . Shots . | . . . . Rammed 3 | . . 3 . Targets Rammed 3 | . . 3 . Kicked . | . . . . Crushed . | . . . . Highest Temperature 84 | . 29 84 . Average Temperature 17 | . 8 26 . Received Heat Transfer 282 | . 60 186 36 Siege Activations . | . . . . Robots Corrupted . | . . . . Combat Hostiles . | . . . . Parts Fried . | . . . . Impact Corruptions . | . . . . Robots Melted . | . . . . Combat Hostiles . | . . . . Parts Melted . | . . . . Heat Transferred . | . . . . Parts Sabotaged . | . . . . Parts Stolen . | . . . . Parts Stripped . | . . . . Power Chain Reactions . | . . . . Alert | -11 -10 -10 -10 ------- Run | Yrd Mat Min Sub Peak Influence 264 | . 264 139 . Initial 1 | . . 1 . Average 39 | . 70 12 . Maximum Alert Level 1 | . 1 . . Low Security (%) 97 | 100 93 100 . Level 1 2 | . 6 . . Level 2 . | . . . . Level 3 . | . . . . Level 4 . | . . . . Level 5 . | . . . . High Security . | . . . . Max Security . | . . . . Squads Dispatched . | . . . . Investigation . | . . . . Extermination . | . . . . Reinforcement . | . . . . Assault . | . . . . Garrison . | . . . . Intercept . | . . . . Searches Triggered . | . . . . Construction Impeded . | . . . . Haulers Reinforced . | . . . . Active Scanning Responses . | . . . . Cargo Convoy Interrupts . | . . . . Stealth | -11 -10 -10 -10 --------- Run | Yrd Mat Min Sub Distress Signals 1 | . 1 . . Communications Jammed . | . . . . Distress Signals . | . . . . Times Spotted 39 | . 24 10 5 Peak Tracking Total 7 | . 7 5 2 Tactical Retreats . | . . . . Traps | -11 -10 -10 -10 ------- Run | Yrd Mat Min Sub Traps Triggered 1 | . . . 1 Indirectly . | . . . . Trap Hack Attempts . | . . . . Triggered . | . . . . Disarmed . | . . . . Reprogrammed . | . . . . Reused . | . . . . Traps Extracted . | . . . . Installed . | . . . . Triggered 1 | . . . 1 Most Traps Carried 1 | . . . 1 Machines | -11 -10 -10 -10 ---------- Run | Yrd Mat Min Sub Machines Disabled 2 | . 2 . . Max in Single Turn 1 | . 1 . . Machines Repaired . | . . . . Machines Dismantled . | . . . . Machines Sabotaged . | . . . . Overloaded Fab Kills . | . . . . Hacking | -11 -10 -10 -10 --------- Run | Yrd Mat Min Sub Machines Accessed 9 | . 8 . 1 Terminals 6 | . 6 . . Fabricators . | . . . . Repair Stations 1 | . 1 . . Recycling Units 1 | . 1 . . Scanalyzers . | . . . . Garrison Access . | . . . . Total Hacks 21 | . 19 . 2 Successful 11 | . 9 . 2 Failed 10 | . 10 . . Catastrophic 1 | . 1 . . Database Lockouts . | . . . . Manual . | . . . . Terminals 15 | . 15 . . Fabricators . | . . . . Repair Stations 3 | . 3 . . Recycling Units 1 | . 1 . . Scanalyzers . | . . . . Garrison Access . | . . . . Terminal Hacks 8 | . 6 . 2 Record 2 | . . . 2 Robot Analysis 1 | . 1 . . Prototype ID Bank 1 | . 1 . . Terminal Index 1 | . 1 . . Locate Traps 2 | . 2 . . Dispatch Records 1 | . 1 . . Fabricator Hacks . | . . . . Repair Station Hacks 2 | . 2 . . Scan Component 1 | . 1 . . Repair 1 | . 1 . . Recycling Unit Hacks 1 | . 1 . . Report Inventory 1 | . 1 . . Scanalyzer . | . . . . Garrison Access Hacks . | . . . . Unauthorized Hacks . | . . . . Terminals . | . . . . Fabricators . | . . . . Repair Stations . | . . . . Recycling Units . | . . . . Scanalyzers . | . . . . Garrison Access . | . . . . Data Cores Recovered 1 | . 1 . . Used . | . . . . Hacking Detections 6 | . 6 . . Full Trace Events . | . . . . Feedback Events . | . . . . Feedback Blocked . | . . . . Robot Schematics Acquired . | . . . . Robots Built . | . . . . Authchips . | . . . . Time . | . . . . Total Robot Build Rating . | . . . . Part Schematics Acquired . | . . . . Parts Built . | . . . . Authchips . | . . . . Time . | . . . . Total Part Build Rating . | . . . . Parts Repaired 1 | . 1 . . Time 26 | . 26 . . Parts Recycled . | . . . . Recycled Matter . | . . . . Retrieved Matter . | . . . . Retrieved Components . | . . . . Parts Scanalyzed . | . . . . Part Schematics Acquired . | . . . . Parts Damaged . | . . . . Bothacking | -11 -10 -10 -10 ------------ Run | Yrd Mat Min Sub Used RIF Installer . | . . . . Robots Hacked . | . . . . Non-combat . | . . . . Combat . | . . . . Robot Hacks Applied . | . . . . Relay Couplers Released . | . . . . Fabnet Peak Effective % . | . . . . Robots Rewired . | . . . . Allies Hacked . | . . . . Hacks Repelled . | . . . . Allies | -11 -10 -10 -10 -------- Run | Yrd Mat Min Sub Total Allies . | . . . . Largest Group . | . . . . Highest-Rated Group . | . . . . Highest-Rated Ally . | . . . . Total Orders . | . . . . Ally Attacks . | . . . . Total Damage . | . . . . Kills . | . . . . Allies Corrupted . | . . . . Allies Melted 1 | . . . 1 Intel | -11 -10 -10 -10 ------- Run | Yrd Mat Min Sub Robot Analysis Total 1 | . 1 . . Derelict Logs Recovered 1 | . . 1 . Drone Launches . | . . . . Drone Recoveries . | . . . . Exploration | -11 -10 -10 -10 ------------- Run | Yrd Mat Min Sub Turns Passed 4780 | 66 1536 1612 1566 Spaces Moved 2342 | 33 773 750 786 Core 7 | 7 . . . Treads 1464 | 26 773 417 248 Legs 871 | . . 333 538 Wheels . | . . . . Hover . | . . . . Flight . | . . . . Fastest Speed 50 | 50 160 160 160 Average Speed 180 | 136 163 201 180 Slowest Speed 240 | 160 240 240 190 Overloaded Moves . | . . . . Propulsion Burnouts . | . . . . Robots Hopped . | . . . . Cave-ins Triggered . | . . . . Exploration Rate (%) 60 | 4 96 97 46 Regions Visited 3 Branch Regions 2 Pre-discovered Areas 1 | . . 1 . Known Exits Taken 2 | . 1 1 . Unknown Exits Taken 1 | 1 . . . Scrap Searched 7 | . . 1 6 Spaces Dug 6 | . 6 . . Terrain Destroyed 60 | . 26 34 . Melee 6 | . 6 . . Projectile 2 | . 1 1 . AOE 52 | . 19 33 . Terrain Rammed . | . . . . Walls Destroyed . | . . . . Machines Disabled . | . . . . Actions | -11 -10 -10 -10 --------- Run | Yrd Mat Min Sub Total 2631 | 49 929 795 858 Wait 27 | 1 26 . . Move 2339 | 32 772 749 786 Hop . | . . . . Pick Up 50 | 7 24 6 13 Fast Attach . | . . . . Attach 17 | 6 3 6 2 Detach 2 | . 2 . . Swap 40 | . 24 4 12 Drop 15 | . 9 . 6 Fire 120 | 3 61 27 29 Melee 18 | . 8 . 10 Ram . | . . . . Kick . | . . . . Crush 3 | . . 3 . Escape Stasis . | . . . . Rewire . | . . . . Trap . | . . . . Miscellaneous . | . . . . Route ------- -11/Scrapyard -10/Materials (discovered 5 exits: *Mat x3 / *Min x2) -10/Mines (discovered 3 exits: *Mat x2 / *Sub) -10/Subcaves History --------- Turn | Location | Event 2 | -11/Scrapyard | Met Revision 17 7 | -11/Scrapyard | Discovered new exit (range 14) 67 | -11/Scrapyard | Entered Materials 300 | -10/Materials | Build established: Mutant 450 | -10/Materials | Discovered new exit (range 13) 491 | -10/Materials | Discovered new exit (range 13) 662 | -10/Materials | Discovered new exit (range 12) 819 | -10/Materials | Repaired Grenade Launcher 1124 | -10/Materials | Discovered new exit (range 16) 1420 | -10/Materials | Identified exit to Materials 1488 | -10/Materials | Discovered exit to Materials (range 13) 1601 | -10/Materials | Identified exit to Mines 1603 | -10/Materials | Entered Mines 1604 | -10/Mines | Learned location of Storage (-9) 1817 | -10/Mines | Discovered exit to Materials (range 5) 1855 | -10/Mines | YI-UF0 nonchalantly dropped a Grenade Launcher on the ground 1861 | -10/Mines | Found a damaged Exp. Sensor Array with a note attached 1864 | -10/Mines | Found Prototype Device 1883 | -10/Mines | Core integrity fell below 50% 1891 | -10/Mines | Core integrity fell below 20% 1899 | -10/Mines | Identified Exp. Sensor Array 1919 | -10/Mines | Lost 6 parts (1p2n1u2w) 2443 | -10/Mines | Learned Materials terminal intel 2822 | -10/Mines | Discovered new exit (range 8) 2860 | -10/Mines | Discovered exit to Materials (range 5) 2954 | -10/Mines | Identified exit to Subcaves 3215 | -10/Mines | Entered Subcaves 3894 | -10/Subcaves | Build established: Derelict-Mutant 3913 | -10/Subcaves | Visited Clippyterm 3918 | -10/Subcaves | Learned Research security intel 4055 | -10/Subcaves | Disturbed a concealed Subdweller 4371 | -10/Subcaves | Build established: Mutant 4781 | -10/Subcaves | Destroyed by I6-536(R) with Subdweller Machine Gun Last Messages --------------- Acquired 2 matter. Acquired 3 matter. Searching scrap... Found Mak. Laser. Found Sub. Power Source. Found 21 Matter. Acquired 21 matter. Subatomizers dissect the Sub. Power Source. Searching scrap... Found Barrage Gun. Found Sub. Optics. Found 17 Matter. Acquired 17 matter. Acquired Mak. Laser. Acquired Sub. Power Source. Acquired 15 matter. Acquired Mak. Shrapnel Gun. Dropped Mak. Laser. Acquired Shrapnel Trap. Acquired 8 matter. Map ----- +----------------------------------------------------+ | ?????????????????????????????????????????????????? | | ?????????????????????????????????????????????????? | | ?????????????????????????????????????????????????? | | ?????????????????????????????????????????????????? | | ?????????????????????????????????????????????????? | | ?????????????????????????????????????????????????? | | ?????????????????????????????????????????????????? | | ?????????????????????????????????????????????????? | | ?????????????????????????????????????????????????? | | ?????????????????????????????????????????????????? | | ?????????????????????????????????????????????????? | | ?????????????????????????????????????????????????? | | ?????????????????????????????????????????????????? | | ?????????????????????????????????????????????????? | | ?????????????????????????????#??????????????###### | | ?????????????????????????????# #????????????# # | | ???????????? ????????????????? #????????????# | | ???????????? ?????????????????# #??????????## | | ??????????? #????????##?????# #?????????# | | ???????????? ? ??????? ???????# #??????### ## | | ?????????????" ?????? ????????# #?????# #? | | ?????????????"R ????? ????????? #???## #? | | ????????????? " ??## ??????????# ####" ####? | | ????????????????" ## ##??????????# ##???? | | ???????????????????? % ###??????#### #???? | | ???????????????????????# @ ###????# ## "# ###???? | | ???????????????????????# #?????# #####?????? | | ???????????????????????## ######## # #????????? | | ????????????????????????# ; #### ## ####????????? | | ????????????????????????#### ## # #??????????? | | ???????????????????????????########## #??????????? | | ????????????????????????????????????###??????????? | | ?????????????????????????????????????????????????? | | ?????????????????????????????????????????????????? | | ?????????????????????????????????????????????????? | | ?????????????????????????????????????????????????? | | ?????????????????????????????????????????????????? | | ?????????????????????????????????????????????????? | | ?????????????????????????????????????????????????? | | ?????????????????????????????????????????????????? | | ?????????????????????????????????????????????????? | | ?????????????????????????????????????????????????? | | ?????????????????????????????????????????????????? | | ?????????????????????????????????????????????????? | | ?????????????????????????????????????????????????? | | ?????????????????????????????????????????????????? | | ?????????????????????????????????????????????????? | | | | | | | +----------------------------------------------------+ Best States ------------- Heat Dissipation 25 Energy Generation 15 Energy Capacity 250 Matter Stores 300 Matter Capacity 300 Sight Range 18 Robot Scan Range 20 Terrain Scan Density 85 Evasion (%) 40 Recoil Reduction 2 Item Schematics ----------------- None Robot Schematics ------------------ None Fabricated ------------ Nothing Alien Tech Used ----------------- None Achievements -------------- None Challenges ------------ None Game ------ Seed ExperimentalCargoSource Manual? 0 Play Time 00:46:53 Cumulative 8.6 hours Start 2024.04.08 @ 18:33:21 End 2024.04.08 @ 19:39:17 Sessions 1 Manual Loads 0 Difficulty Rogue Special Mode None Game No. 11 Rogue 11 Adventurer 0 Explorer 0 Win Type - Total 0 Types 0/0/0/0/0/0/0/0/0 Lore% 10 Gallery% 10 Achievement% 12 Wizard Run 0 Options --------- Layout 1 ASCII 0 Keyboard 0 Movement Mouse Keybinds 0 Fullscreen 1 Font 16/SmallcapsGlow Map View 55x38 Zoom Use 0% Tactical HUD 0 Map Filters NONE Filters NONE Steam 1 RUN: ccc91949-2417-4290-b64c-a0dd4d6b7eea